Cogmind - Beta 16.1 @@@ ROGUE MODE // 2026.04.19 @ 02:26:57 Player: mephiles96 Result: Destroyed by G-47 Trooper with Particle Gun Performance ------------- Evolutions (0) 0 Regions Visited (2) 400 Robots Destroyed (38) 190 Value Destroyed (598) 598 Prototype IDs (0) 0 Alien Tech Used (0) 0 Bonus (0) 0 TOTAL SCORE: 1188 Bonus ------- None Cogmind --------- Core Integrity 0/250 Matter 276/300 Energy 100/100 System Corruption 0% Temperature Cool (9) Movement Core (1350) Ox26 Location -10/Mines Parts ------- > --- POWER (1) -------- (None) > --- PROPULSION (2) --- (None) > --- UTILITY (2) ------ Huge Storage Unit Structural Scanner > --- WEAPON (2) ------- (None) > --- INVENTORY (25) --- Light Ion Engine Light Treads Compact Wheel Flight Unit Flight Unit Flight Unit Flight Unit Flight Unit Medium Storage Unit Improved Terrain Scanner Light Armor Plating Light Armor Plating Mining Claw Peak State ------------ > --- POWER ------------ Ion Engine > --- PROPULSION ------- Light Treads Light Treads > --- UTILITY ---------- Small Storage Unit Seismic Detector > --- WEAPON ----------- Small Laser Assault Rifle > --- INVENTORY -------- Light Ion Engine Wheel Compact Wheel Flight Unit Huge Storage Unit Improved Terrain Scanner Light Assault Rifle Mining Laser [Rating: 8] Favorites ----------- Power Ion Engine Engine Ion Engine Propulsion Light Treads Treads Light Treads Wheel Compact Wheel Utility Structural Scanner Device Structural Scanner Storage Medium Storage Unit Protection Light Armor Plating Weapon Assault Rifle Energy Gun Small Laser Ballistic Gun Assault Rifle Build | -11 -10 -10 ------- Run | Yrd Mat Min Slots Evolved . | . . . Power . | . . . Propulsion . | . . . Utility . | . . . Weapon . | . . . Parts Attached 16 | 7 6 3 Power 2 | 1 1 . Engine 2 | 1 1 . Core . | . . . Reactor . | . . . Propulsion 4 | 2 . 2 Treads 2 | 2 . . Leg . | . . . Wheel 2 | . . 2 Hover . | . . . Flight . | . . . Utility 6 | 2 3 1 Device 2 | 1 1 . Storage 3 | 1 2 . Processor . | . . . Hackware . | . . . Protection 1 | . . 1 Artifact . | . . . Weapon 4 | 2 2 . Energy Gun 1 | 1 . . Energy Cannon . | . . . Ballistic Gun 3 | 1 2 . Ballistic Cannon . | . . . Launcher . | . . . Special Weapon . | . . . Impact Weapon . | . . . Slashing Weapon . | . . . Piercing Weapon . | . . . Special Melee Weapon . | . . . Unidentified Prototypes . | . . . Parts Lost 6 | . 1 5 Power 2 | . 1 1 Propulsion 2 | . . 2 Utility . | . . . Weapon 2 | . . 2 Highest Loss Streak 5 | . 1 5 To Critical Strikes . | . . . Average Backups 8 | 4 8 11 Power . | . 1 1 Propulsion 3 | 1 3 5 Utility 2 | . 2 4 Weapon 1 | . 1 1 Tool/Special . | . . . Unused Backups 11 | . 2 9 Power 1 | . . 1 Propulsion 6 | . 1 5 Utility 2 | . . 2 Weapon 2 | . 1 1 Tool/Special . | . . . Average Slot Usage (%) 94 | . 94 96 Engine 9 | . 8 12 Treads 25 | . 28 16 Wheel 1 | . . 9 Device 13 | . 14 12 Storage 14 | . 14 14 Energy Gun 1 | . 1 . Ballistic Gun 26 | . 25 27 Peak Build Rating 8 | 7 8 8 Average Rating 7 | 6 7 7 On Entrance 5 | . 7 8 Avg Prop Armor Cover (%) 12 | . . 12 Naked Turns . | . . . Heaviest Build 89 | 14 19 89 Greatest Support 40 | 40 40 40 Greatest Overweight (x) 27 | . . 27 Average Overweight (x) . | . . 4 Largest Inventory Capacity 25 | 8 25 25 Average Capacity 11 | 7 9 23 Most Carried 13 | 6 10 13 Average Carried 8 | 4 8 11 Final Capacity 25 | 8 10 25 Final Carried 13 | 6 10 13 Class Distribution -------------------- 100% | Mutant Dominant Class ---------------- Mutant | -10/Materials Mutant | -10/Mines Resources | -11 -10 -10 ----------- Run | Yrd Mat Min Matter Collected 824 | 308 361 155 Remotely . | . . . Salvage Created 1370 | 133 980 257 Parts 88 | 9 61 18 Haulers Intercepted 2 | . 2 . Recyclers Shooed 5 | . 5 . Parts Field Recycled . | . . . Retrieved Matter . | . . . Parts Self-Destructed . | . . . Prevented . | . . . Parts Restored . | . . . Kills | -11 -10 -10 ------- Run | Yrd Mat Min Combat Hostiles Destroyed 19 | . 12 7 Guns 19 | . 12 7 Classes Destroyed 9 | 2 7 . Worker 2 | . 1 1 Builder 2 | . 2 . Tunneler 5 | 2 3 . Hauler 2 | . 2 . Recycler 5 | 1 4 . Operator 1 | . 1 . Watcher 2 | . 2 . Swarmer 9 | . 6 3 Grunt 10 | . 6 4 Best Kill Streak 8 | 1 8 3 Combat Bots Only 5 | . 5 3 Max Kills in Single Turn 1 | 1 1 1 Gunslinging . | . . . Exploded . | . . . Melee . | . . . Uniques/NPCs Destroyed . | . . . Combat | -11 -10 -10 -------- Run | Yrd Mat Min Hostile Shots Fired 135 | . 69 66 Missed 40 | . 22 18 Hits 95 | . 47 48 Projectile 95 | . 47 48 Critical Strikes 3 | . 1 2 Damage Taken 1053 | . 473 580 Core 255 | . 122 133 Absorbed by Shields . | . . . Core Remaining (%) 100 | 100 . . Volleys Fired 126 | 14 79 33 Largest 2 | 2 2 2 Hottest 60 | 60 60 40 Shots Fired 250 | 28 158 64 Gun 250 | 28 158 64 Cannon . | . . . Launcher . | . . . Special . | . . . Kinetic 224 | 14 146 64 Thermal 26 | 14 12 . Explosive . | . . . Electromagnetic . | . . . Robot Hit Streak 9 | 3 7 9 Robot Miss Streak 6 | 6 5 4 Penetration Max . | . . . Secondary Targets 3 | . 1 2 Max Gunslinging Chain 1 | . 1 1 Shots Hit Robots 140 | 14 86 40 Core Hits 64 | 4 42 18 Critical Kills 1 | . 1 . Critical Parts Destroyed 1 | . 1 . Critical Strikes 2 | . 2 . Destroy 2 | . 2 . Melee Attacks . | . . . Impact . | . . . Slashing . | . . . Piercing . | . . . Sneak Attacks . | . . . Combat Hostiles . | . . . Follow-up Attacks . | . . . Damage Inflicted 1553 | 170 937 446 Guns 1547 | 170 931 446 Cannons . | . . . Explosions . | . . . Melee . | . . . Ramming 6 | . 6 . Kinetic 1392 | 92 854 446 Thermal 155 | 78 77 . Explosive . | . . . Electromagnetic . | . . . Impact . | . . . Slashing . | . . . Piercing . | . . . Highest Corruption . | . . . Average Corruption . | . . . Corruption Purged . | . . . Corruption Blocked . | . . . Overload Shots . | . . . Overflow Damage . | . . . Projectiles . | . . . Explosions . | . . . Melee . | . . . Knockbacks . | . . . Impact . | . . . Kinetic . | . . . Secondary . | . . . Self-Inflicted Damage . | . . . Shots . | . . . Rammed 2 | 1 1 . Targets Rammed 2 | 1 1 . Kicked . | . . . Crushed . | . . . Highest Temperature 30 | . 27 30 Average Temperature 12 | . 11 13 Received Heat Transfer 489 | . 180 309 Siege Activations . | . . . Martial Activations . | . . . Shielding Activations . | . . . Robots Disrupted . | . . . Combat Hostiles . | . . . Robots Corrupted . | . . . Combat Hostiles . | . . . Parts Fried . | . . . Impact Corruptions . | . . . Robots Melted . | . . . Combat Hostiles . | . . . Parts Melted 1 | . 1 . Heat Transferred 350 | 175 175 . Parts Sabotaged . | . . . Parts Stolen . | . . . Parts Stripped . | . . . Power Chain Reactions . | . . . Alert | -11 -10 -10 ------- Run | Yrd Mat Min Maximum Alert Level . | . . . Low Security (%) 100 | 100 100 100 Level 1 . | . . . Level 2 . | . . . Level 3 . | . . . Level 4 . | . . . Level 5 . | . . . High Security . | . . . Max Security . | . . . Peak Influence 155 | 5 155 70 Initial . | . . . Average 37 | . 43 30 Influence Increases 567 | 15 377 175 Destroy 0b10 Robot/C 380 | . 240 140 Destroy 0b10 Robot/NC 95 | 15 75 5 Destroy Leader 78 | . 48 30 Successful Hack 14 | . 14 . Influence Decreases 537 | 15 377 145 Time Decay 507 | 15 367 125 Lost Part 30 | . 10 20 Squads Dispatched 1 | . 1 . Investigation . | . . . Extermination . | . . . Reinforcement 1 | . 1 . Assault . | . . . Garrison . | . . . Intercept . | . . . Searches Triggered . | . . . Construction Impeded . | . . . Haulers Reinforced . | . . . Active Scanning Responses . | . . . Cargo Convoy Interrupts . | . . . Stealth | -11 -10 -10 --------- Run | Yrd Mat Min Distress Signals 2 | . 2 . Communications Jammed . | . . . Distress Signals . | . . . Times Spotted 29 | . 21 8 Peak Tracking Total 3 | . 3 2 Tactical Retreats . | . . . Traps | -11 -10 -10 ------- Run | Yrd Mat Min Traps Triggered . | . . . Indirectly . | . . . Trap Hack Attempts . | . . . Triggered . | . . . Disarmed 3 | . 3 . Reprogrammed . | . . . Reused . | . . . Traps Extracted . | . . . Installed . | . . . Triggered . | . . . Machines | -11 -10 -10 ---------- Run | Yrd Mat Min Machines Disabled . | . . . Max in Single Turn . | . . . Machines Repaired . | . . . Machines Dismantled . | . . . Machines Sabotaged . | . . . Overloaded Fab Kills . | . . . Hacking | -11 -10 -10 --------- Run | Yrd Mat Min Machines Accessed 4 | . 4 . Terminals 4 | . 4 . Fabricators . | . . . Repair Stations . | . . . Recycling Units . | . . . Scanalyzers . | . . . Garrison Access . | . . . Total Hacks 10 | . 10 . Successful 3 | . 3 . Failed 7 | . 7 . Catastrophic 2 | . 2 . Database Lockouts . | . . . Manual 9 | . 9 . Terminals 10 | . 10 . Fabricators . | . . . Repair Stations . | . . . Recycling Units . | . . . Scanalyzers . | . . . Garrison Access . | . . . Terminal Hacks 3 | . 3 . Robot Analysis 1 | . 1 . Level Access Points 1 | . 1 . Disarm Traps 1 | . 1 . Fabricator Hacks . | . . . Repair Station Hacks . | . . . Recycling Unit Hacks . | . . . Scanalyzer . | . . . Garrison Access Hacks . | . . . Unauthorized Hacks . | . . . Terminals . | . . . Fabricators . | . . . Repair Stations . | . . . Recycling Units . | . . . Scanalyzers . | . . . Garrison Access . | . . . Data Cores Recovered . | . . . Used . | . . . Hacking Detections 4 | . 4 . Full Trace Events 1 | . 1 . Feedback Events . | . . . Feedback Blocked . | . . . Robot Schematics Acquired . | . . . Robots Built . | . . . Authchips . | . . . Time . | . . . Total Robot Build Rating . | . . . Part Schematics Acquired . | . . . Parts Built . | . . . Authchips . | . . . Time . | . . . Total Part Build Rating . | . . . Part Studies Acquired . | . . . Parts Repaired . | . . . Time . | . . . Parts Recycled . | . . . Recycled Matter . | . . . Retrieved Matter . | . . . Retrieved Components . | . . . Parts Scanalyzed . | . . . Part Schematics Acquired . | . . . Parts Damaged . | . . . Bothacking | -11 -10 -10 ------------ Run | Yrd Mat Min Used RIF Installer . | . . . Robots Hacked . | . . . Non-combat . | . . . Combat . | . . . Robot Hacks Applied . | . . . Relay Couplers Released . | . . . Fabnet Peak Effective % . | . . . Robots Rewired . | . . . Allies Hacked . | . . . Hacks Repelled . | . . . Allies | -11 -10 -10 -------- Run | Yrd Mat Min Total Allies . | . . . Largest Group . | . . . Highest-Rated Group . | . . . Highest-Rated Ally . | . . . Total Orders . | . . . Ally Attacks . | . . . Total Damage . | . . . Kills . | . . . Allies Corrupted . | . . . Allies Melted . | . . . Intel | -11 -10 -10 ------- Run | Yrd Mat Min Active Infowar (turns) 1822 | 110 1409 303 Structural 1214 | . 911 303 Seismic 608 | 110 498 . Robot Analysis Total 1 | . 1 . Derelict Logs Recovered . | . . . Drone Launches . | . . . Drone Recoveries . | . . . Exploration | -11 -10 -10 ------------- Run | Yrd Mat Min Turns Passed 1921 | 175 1409 337 Spaces Moved 907 | 75 717 115 Core 5 | 4 . 1 Treads 801 | 71 717 13 Legs . | . . . Wheels 101 | . . 101 Hover . | . . . Flight . | . . . Fastest Speed 50 | 50 160 160 Average Speed 163 | 154 160 191 Slowest Speed 1400 | 160 160 1400 Overloaded Moves . | . . . Propulsion Burnouts . | . . . Robots Hopped . | . . . Potential Cave-ins . | . . . Cave-ins Triggered . | . . . Exploration Rate (%) 41 | 4 95 26 Regions Visited 2 Branch Regions 1 Pre-discovered Areas . | . . . Known Exits Taken . | . . . Unknown Exits Taken 2 | 1 1 . Scrap Searched . | . . . Spaces Dug . | . . . Terrain Destroyed . | . . . Melee . | . . . Projectile . | . . . AOE . | . . . Terrain Rammed . | . . . Walls Destroyed . | . . . Machines Disabled . | . . . Actions | -11 -10 -10 --------- Run | Yrd Mat Min Total 1118 | 103 836 179 Wait 38 | . 18 20 Move 905 | 74 716 115 Hop . | . . . Pick Up 18 | 7 8 3 Fast Attach 8 | 6 2 . Attach 2 | 1 1 . Detach . | . . . Swap 11 | . 4 7 Drop 8 | . 7 1 Fire 126 | 14 79 33 Melee . | . . . Ram . | . . . Kick . | . . . Crush 2 | 1 1 . Escape Stasis . | . . . Rewire . | . . . Trap . | . . . Miscellaneous . | . . . Route ------- -11/Scrapyard -10/Materials (discovered 5 exits: *Mat x3 / [*Min x2]) -10/Mines (discovered 1 exit: *Mat) History --------- Turn | Location | Event 3 | -11/Scrapyard | Discovered new exit (range 16) 176 | -11/Scrapyard | Entered Materials 310 | -10/Materials | Build established: Mutant 749 | -10/Materials | Discovered new exit (range 6) 890 | -10/Materials | Discovered new exit (range 6) 1153 | -10/Materials | Identified exit to Materials 1218 | -10/Materials | Discovered new exit (range 5) 1585 | -10/Materials | Entered Mines 1588 | -10/Mines | Core integrity fell below 50% 1653 | -10/Mines | Discovered exit to Materials (range 5) 1906 | -10/Mines | Core integrity fell below 20% 1922 | -10/Mines | Destroyed by G-47 Trooper with Particle Gun Last Messages --------------- 01692_ R-06 Scavenger collects Imp. Heat Sink. 01695_ G-34 Mercenary destroyed. 01695_ R-06 Scavenger collects Sml. Laser. 01700_ Acquired 95 matter. 01700_ R-06 Scavenger collects Aluminum Leg. 01708_ K-01 Serf collects debris. 01842_ K-01 Serf destroyed. 01849_ Acquired 20 matter. 01862_ R-06 Scavenger collects Lgt. Ion Engine. 01871_ Critical hit (Burn: +37). 01892_ Lgt. Treads destroyed. 01897_ Ion Engine destroyed. 01900_ Wheel destroyed. 01906_ G-47 Trooper destroyed. 01906_ Switching to secondary target: G-34 Mercenary. 01910_ Assault Rifle destroyed. 01914_ G-34 Mercenary destroyed. 01920_ Critical hit (Burn: +37). 01921_ Lgt. Assault Rifle destroyed. Map ----- +----------------------------------------------------+ | ?????????????????????????????????????????????????? | | ?????????????????????????????????????????????????? | | ?????????????????????????????????????????????????? | | ?????????????????????????????????????????????????? | | ?????????????????????????????????????????????????? | | ?????????????????????????????????????????????????? | | ?????????????????????????????????????????????????? | | ?????????????????????????????????????????????????? | | ?????????????????????????????????????????????????? | | ?????????????????????????????????????????????????? | | ????????????????????????????????????? ##?????????? | | ???????????????????????????###?????? ###????????? | | ???????????????????????????###?????? ###????????? | | ??????????????????????????? #????? ##????????? | | ???????????????????????????? ?????? ##????????? | | ???????????????????????????? ##???? ##????????? | | ??????????????????????????## ##???? #??????????? | | ??????????????????????????## ##??## ##??????????? | | ??????????????????????????## ###### ###?????????? | | ??????????????????????????## ##### ###?????????? | | ??????????????????????????## #### ###????????? | | ??????????????????????????## #### ######?????? | | ????????????????????????#### #### #####?????? | | ???????????????????????##### r ##?????? | | ???????????????????????### gg ##???? #?????? | | ???????????????????????##@ ### ###????????????? | | ???????????????????????## ! t ### ##### ?????????? | | ???????????????????????###%!%[ ## ######?????????? | | ???????????????????????###= = ## ##?????????? | | ????????????????????????## = ###### ##?????????? | | ????????????????????????## ####### #######????? | | ????????????????????????## ####??## ########???? | | ????????????????????????## ###???## ### #####?? | | ???????????????????????### ###??## #####? | | ??????????????????????### ##??## ## #### | | ??????????????????????## ### ### ### | | ??????????????????????## ## #### ## | | ??????????????????????### ## #### # | | ??????????????????????### ### #### # | | ???????????????????????# #### ##### ## | | ???????????????????????? ##### ###### ## | | ??????????????????????? ##### ##### ### | | ?????????????????????? ###?#### ########## | | ????????????????????? ## ######### ##??#####? | | ?????????????????????##### ########## ##???????? | | ?????????????????????######### ##???????? | | ????????????????????????###### ######## ##???????? | | ??????????????????############ ######## ##???????? | | ??????????????????############ ######## ###??????? | | ??????????????????## ## #### ####?????? | +----------------------------------------------------+ Best States ------------- Heat Dissipation 25 Energy Generation 10 Energy Capacity 250 Matter Stores 300 Matter Capacity 300 Sight Range 16 Terrain Scan Density 10 Armor Coverage 150 Evasion (%) 40 Recoil Reduction 2 Item Schematics ----------------- None Robot Schematics ------------------ None Fabricated ------------ Nothing Repaired ---------- Nothing Studied --------- None Alien Tech Used ----------------- None Achievements -------------- None Challenges ------------ None Game ------ Seed ThermicRocketSource Manual? 0 Play Time 00:12:43 Cumulative 52.2 hours Start 2026.04.19 @ 02:16:11 End 2026.04.19 @ 02:26:57 Sessions 1 Manual Loads 0 Difficulty Rogue Special Mode None Game No. 65 Rogue 65 Adventurer 0 Explorer 0 Win Type - Total 0 Types 0/0/0/0/0/0/0/0/0/0 Lore% 26 Gallery% 34 Achievement% 28 Wizard Run 0 Options --------- Layout 2 ASCII 0 Keyboard 0 Movement Numpad Keybinds 1 Fullscreen 1 Font 24/Smallcaps Map View 50x44 Zoom Use 0% Tactical HUD 1 Map Filters NONE Filters NONE Steam 1 RUN: b86e707a-c049-4b64-8901-bd0435fa2106